bitfinex-derivatives/quotes_BNBF0:USTF0_20250331
["timestamp","ask_amount","ask_price","bid_price","bid_amount"]
[1743438638536,0.32999488,606.07,604.25,0.33098882]
[1743438638737,0.28756528,605.56,604.25,0.33098882]
[1743438639131,0.32999488,606.07,604.25,0.33098882]
[1743438639331,0.28756409,605.55,604.26,2.52713307]
[1743438639735,0.32999488,606.07,604.28,0.33097239]
[1743438639938,0.28756172,605.54,604.28,0.33097239]
[1743438640236,0.32999488,606.07,604.28,0.33097239]
[1743438640432,0.30355783,606.06,604.29,1.9786932]
[1743438640637,0.28756172,605.53,604.31,0.33095596]
[1743438640836,0.30355783,606.05,604.31,0.33095596]
[1743438640837,0.32999488,606.07,604.31,0.33095596]
[1743438641034,0.30355705,606.06,604.31,0.33095596]
[1743438641232,0.28756172,605.52,604.31,0.33095596]
[1743438641435,0.30355705,606.05,604.31,0.33095596]
[1743438641436,0.32999488,606.07,604.31,0.33095596]
[1743438641634,0.30357857,606.06,604.31,0.33095596]
[1743438641931,0.28758548,605.51,604.31,0.33095596]
[1743438642134,0.33000577,606.05,604.31,0.33095596]
[1743438642334,0.28761044,605.5,604.31,0.33095596]
[1743438642738,0.33000577,606.05,604.31,0.33095596]
[1743438642938,0.28760331,605.49,604.31,0.33095596]
[1743438643236,0.33000577,606.05,604.31,0.33095596]
[1743438643436,0.30362648,606.04,604.31,0.33095596]
[1743438643635,0.28761757,605.48,604.31,0.33095596]
[1743438643940,0.33000577,606.05,604.31,0.33095596]
[1743438644137,0.28761757,605.47,604.31,0.33095596]
[1743438644536,0.33000577,606.05,604.31,0.33095596]
[1743438644834,0.28763777,605.46,604.31,0.33095596]
[1743438645032,0.33000577,606.05,604.31,0.33095596]
[1743438645235,0.30364903,606.04,604.31,0.33095596]
[1743438645437,0.28763896,605.45,604.31,0.33095596]
[1743438645738,0.33001666,606.03,604.31,0.33095596]
[1743438645932,0.28764491,605.44,604.31,0.33095596]
[1743438646331,0.33001666,606.03,604.31,0.33095596]
[1743438646530,0.28764134,605.43,604.31,0.33095596]
[1743438646931,0.33001666,606.03,604.31,0.33095596]
[1743438647231,0.28763064,605.42,604.31,0.33095596]
[1743438647436,1.31241725,606.03,604.31,0.33095596]
[1743438647737,0.28762945,605.41,604.31,0.33095596]
[1743438648040,0.9847033,606.02,604.31,0.33095596]
[1743438648336,0.28762708,605.4,604.31,0.33095596]
[1743438648634,1.31473085,606.01,604.31,0.33095596]
[1743438648833,0.30365399,606.0,604.31,0.33095596]
[1743438649133,0.28762589,605.39,604.31,0.33095596]
[1743438649330,0.33003844,605.99,604.31,0.33095596]
[1743438649534,0.30365959,605.98,604.31,0.33095596]
[1743438649736,0.2876247,605.38,604.31,0.33095596]
[1743438649932,0.33003844,605.99,604.31,0.33095596]
[1743438650138,0.30365797,605.98,604.31,0.33095596]
[1743438650337,0.28762113,605.37,604.31,0.33095596]
[1743438650538,0.33004934,605.97,604.31,0.33095596]
[1743438650734,0.30365869,605.96,604.31,0.33095596]
[1743438650938,0.28761994,605.36,604.31,0.33095596]
[1743438651140,0.33006023,605.95,604.31,0.33095596]
[1743438651337,0.30365795,605.94,604.32,1.9786932]
[1743438651541,0.28761994,605.35,604.34,0.33093953]
[1743438651840,0.33007113,605.93,604.34,0.33093953]
[1743438652040,1.29161994,605.34,604.34,0.33093953]
[1743438652235,1.29161994,605.34,604.35,1.9786932]
[1743438652441,1.004,605.34,604.34,0.33093953]
[1743438652642,0.28768652,605.33,604.34,0.33093953]
[1743438653235,0.28768652,605.33,604.34,2.30963273]
[1743438653436,0.28768652,605.33,604.34,0.33093953]
[1743438653839,1.004,605.34,604.34,0.33093953]
[1743438654237,0.28769247,605.32,604.34,0.33093953]
[1743438656936,1.004,605.34,604.34,0.33093953]
[1743438657442,0.28771863,605.31,604.34,0.33093953]
[1743438660043,1.004,605.34,604.34,0.33093953]
[1743438660444,0.28774718,605.33,604.34,0.33093953]
[1743438665955,1.004,605.34,604.34,0.33093953]
[1743438666257,0.2877912,605.32,604.34,0.33093953]
[1743438669054,1.004,605.34,604.34,0.33093953]
[1743438669252,0.28775789,605.31,604.34,0.33093953]
[1743438670658,0.28775789,605.31,604.35,1.9786932]
[1743438670858,0.28775789,605.31,604.34,0.33093953]
[1743438671862,1.004,605.34,604.34,0.33093953]
[1743438672359,0.28778287,605.3,604.34,0.33093953]
[1743438677867,1.004,605.34,604.34,0.33093953]
[1743438678266,0.28781977,605.29,604.34,0.33093953]
[1743438680867,1.004,605.34,604.34,0.33093953]
[1743438681265,0.28780905,605.28,604.34,0.33093953]
[1743438683972,1.004,605.34,604.34,0.33093953]
[1743438684372,0.28781619,605.33,604.34,0.33093953]
[1743438686176,0.3037603,605.32,604.34,0.33093953]
[1743438686372,0.28781619,605.33,604.34,0.33093953]
[1743438687174,1.004,605.34,604.34,0.33093953]
[1743438687571,0.28780191,605.32,604.34,0.33093953]
[1743438690170,1.004,605.34,604.34,0.33093953]
[1743438690375,0.28782096,605.31,604.34,0.33093953]
[1743438693179,1.004,605.34,604.34,0.33093953]
[1743438693476,0.28781738,605.3,604.34,0.33093953]
[1743438695976,1.004,605.34,604.34,0.33093953]
[1743438696374,0.28783286,605.29,604.34,0.33093953]
[1743438699076,1.004,605.34,604.34,0.33093953]
[1743438699582,0.28783405,605.28,604.34,0.33093953]
[1743438701985,1.004,605.34,604.34,0.33093953]
[1743438702178,0.28779596,605.27,604.34,0.33093953]
[1743438705087,1.004,605.34,604.34,0.33093953]
[1743438705380,0.28775789,605.26,604.34,0.33093953]
[1743438705580,1.004,605.34,604.34,0.33093953]
[1743438710392,0.28768533,605.4,604.34,0.33093953]
[1743438711089,0.33007113,605.93,604.34,0.33093953]
[1743438711294,0.30356852,605.92,604.34,0.33093953]
[1743438711593,0.28760093,605.4,604.34,0.33093953]
[1743438711792,0.33007113,605.93,604.34,0.33093953]
[1743438711994,0.30356852,605.92,604.34,0.33093953]
[1743438712188,0.28759855,605.4,604.34,0.33093953]
[1743438712386,0.33007113,605.93,604.34,0.33093953]
[1743438712589,0.30356823,605.92,604.34,0.33093953]
[1743438712795,0.28759974,605.4,604.34,0.33093953]
[1743438712997,0.33007113,605.93,604.34,0.33093953]
[1743438713188,0.30357088,605.92,604.34,0.33093953]
[1743438713393,0.28760093,605.4,604.34,0.33093953]
[1743438713592,0.33007113,605.93,604.34,0.33093953]
[1743438713789,1.009,605.39,604.34,0.33093953]
[1743438726406,0.28774004,605.38,604.34,0.33093953]
[1743438729107,1.009,605.39,604.34,0.33093953]
[1743438729413,0.28775908,605.37,604.34,0.33093953]
[1743438731010,0.28775908,605.37,604.35,1.98574686]
[1743438731211,0.28775908,605.37,604.36,1.98574686]
[1743438731405,0.28775908,605.37,604.38,0.33091763]
[1743438731610,0.28775908,605.37,604.39,1.98574686]
[1743438731806,0.28775908,605.37,604.41,0.3309012]
[1743438732012,1.009,605.39,604.42,1.98574686]
[1743438732212,0.28765323,605.36,604.44,0.33088478]
[1743438732414,0.28765323,605.36,604.45,1.98574686]
[1743438732614,0.28765323,605.36,604.46,0.33087383]
[1743438735115,1.009,605.39,604.46,0.33087383]
[1743438735315,0.28771268,605.35,604.46,0.33087383]
[1743438737918,1.009,605.39,604.46,0.33087383]
[1743438738318,0.28773528,605.38,604.46,0.33087383]
[1743438743917,1.009,605.39,604.46,0.33087383]
[1743438744315,0.28769366,605.37,604.46,0.33087383]
[1743438749117,1.009,605.39,604.46,0.33087383]
[1743438755925,0.28764015,605.5,604.46,0.33087383]
[1743438758336,0.98507648,606.33,604.47,1.98574686]
[1743438758635,0.28756647,605.57,604.49,0.33085741]
[1743438758833,0.32985882,606.32,604.49,0.33085741]
[1743438759033,0.30351277,606.31,604.49,0.33085741]
[1743438759236,0.63338247,606.3,604.49,0.33085741]
[1743438759435,0.32987514,606.29,604.49,0.33085741]
[1743438759636,0.30351277,606.28,604.49,0.33085741]
[1743438759837,0.30351277,606.27,604.49,0.33085741]
[1743438760033,0.30351277,606.26,604.49,0.33085741]
[1743438760338,0.30351277,606.25,604.49,0.33085741]
[1743438760532,0.30351277,606.24,604.49,0.33085741]
[1743438760739,0.30351277,606.23,604.49,0.33085741]
[1743438760934,0.30351277,606.27,604.49,0.33085741]
[1743438761138,0.30351277,606.22,604.49,0.33085741]
[1743438761334,0.30351277,606.21,604.5,1.98574686]
[1743438761539,0.30351277,606.2,604.52,0.33084099]
[1743438761739,0.63344233,606.19,604.53,1.98574686]
[1743438762040,0.63344777,606.18,604.55,0.33082458]
[1743438762335,0.63345321,606.17,604.55,0.33082458]
[1743438762534,0.63345865,606.16,604.55,0.33082458]
[1743438762838,1.61913517,606.15,604.55,0.33082458]
[1743438763134,0.63346954,606.14,604.55,0.33082458]
[1743438763439,0.63347498,606.13,604.55,0.33082458]
[1743438763641,0.63348043,606.12,604.55,0.33082458]
[1743438763936,0.63348587,606.11,604.55,0.33082458]
[1743438764140,0.63349132,606.1,604.55,0.33082458]
[1743438764336,0.63349676,606.09,604.55,0.33082458]
[1743438764541,0.30351277,606.08,604.55,0.33082458]
[1743438764742,0.30351277,606.07,604.55,0.33082458]
[1743438765042,0.30351277,606.06,604.55,0.33082458]
[1743438765243,0.98567107,606.03,604.55,0.33082458]
[1743438765436,0.30351277,606.02,604.55,0.33082458]
[1743438765636,0.30351277,606.01,604.55,0.33082458]
[1743438765839,0.63354577,606.0,604.55,0.33082458]
[1743438766035,0.30351277,605.99,604.55,0.33082458]
[1743438766237,0.30351277,605.98,604.55,0.33082458]
[1743438766438,0.30351277,605.99,604.55,0.33082458]
[1743438766639,0.30351277,605.98,604.55,0.33082458]
[1743438766841,0.30351277,605.99,604.55,0.33082458]
[1743438767141,0.30351277,605.98,604.55,0.33082458]
[1743438767341,0.30351277,605.99,604.55,0.33082458]
[1743438767641,0.63355666,605.98,604.55,0.33082458]
[1743438767843,0.30351277,605.97,604.55,0.33082458]
[1743438768437,0.287614,605.96,604.55,0.33082458]
[1743438768741,0.30351277,605.95,604.55,0.33082458]
[1743438770038,0.33006568,605.94,604.55,0.33082458]
[1743438770245,0.30351277,605.93,604.55,0.33082458]
[1743438770441,0.33007657,605.92,604.55,0.33082458]
[1743438770642,0.30351277,605.91,604.55,0.33082458]
[1743438771038,0.33007657,605.92,604.55,0.33082458]
[1743438771240,0.3036572,605.91,604.55,0.33082458]
[1743438771439,0.59129497,605.91,604.55,0.33082458]
[1743438771644,0.3036572,605.9,604.55,0.33082458]
[1743438772850,0.30365777,605.89,604.55,0.33082458]
[1743438773049,0.30365777,605.9,604.55,0.33082458]
[1743438773242,0.30365777,605.89,604.55,0.33082458]
[1743438773443,0.28763777,605.91,604.55,0.33082458]
[1743438773444,0.30365777,605.9,604.55,0.33082458]
[1743438773646,0.63375069,605.89,604.55,0.33082458]
[1743438773851,0.30365777,605.88,604.55,0.33082458]
[1743438774047,0.30365777,605.87,604.55,0.33082458]
[1743438774244,0.30365777,605.86,604.55,0.33082458]
[1743438774548,0.30365777,605.85,604.55,0.33082458]
[1743438774747,0.30365777,605.87,604.55,0.33082458]
[1743438774949,0.30365777,605.86,604.55,0.33082458]
[1743438775144,0.28771031,605.88,604.55,0.33082458]
[1743438775145,0.30365777,605.85,604.55,0.33082458]
[1743438775348,0.30365777,605.87,604.55,0.33082458]
[1743438775549,0.30365777,605.86,604.55,0.33082458]
[1743438775746,0.30365777,605.87,604.55,0.33082458]
[1743438775949,0.30365777,605.86,604.55,0.33082458]
[1743438776147,0.30365777,605.85,604.55,0.33082458]
[1743438776344,0.30365777,605.87,604.55,0.33082458]
[1743438776648,0.30365777,605.86,604.55,0.33082458]
[1743438776850,0.30365777,605.85,604.55,0.33082458]
[1743438777149,0.30365777,605.84,604.55,0.33082458]
[1743438777349,0.30365777,605.88,604.55,0.33082458]
[1743438777548,0.28765917,605.84,604.55,0.33082458]
[1743438777748,0.30365777,605.83,604.55,0.33082458]
[1743438780344,0.59135143,605.82,604.55,0.33082458]
[1743438780548,0.30365777,605.81,604.55,0.33082458]
[1743438781150,0.30365192,605.8,604.55,0.33082458]
[1743438781347,0.30365192,605.81,604.55,0.33082458]
[1743438781548,0.28769366,605.82,604.55,0.33082458]
[1743438781549,0.30365192,605.8,604.55,0.33082458]
[1743438781747,0.30365192,605.81,604.55,0.33082458]
[1743438782052,0.28769366,605.82,604.55,0.33082458]
[1743438782245,0.30368107,605.81,604.55,0.33082458]
[1743438783552,0.28766987,605.8,604.55,0.33082458]
[1743438783751,0.30368107,605.79,604.55,0.33082458]
[1743438786356,0.30368107,605.88,604.55,0.33082458]
[1743438786655,0.28767582,605.78,604.55,0.33082458]
[1743438786847,0.30368107,605.77,604.55,0.33082458]
[1743438787048,0.30368107,605.88,604.55,0.33082458]
[1743438787250,0.28767106,605.77,604.55,0.33082458]
[1743438787451,0.30368107,605.76,604.55,0.33082458]
[1743438787653,0.30368107,605.88,604.55,0.33082458]
[1743438787852,0.28765085,605.76,604.55,0.33082458]
[1743438788048,0.33009292,605.89,604.55,0.33082458]
[1743438788248,0.30358847,605.88,604.55,0.33082458]
[1743438788449,0.28764728,605.75,604.55,0.33082458]
[1743438788648,0.33009292,605.89,604.55,0.33082458]
[1743438788850,0.30358398,605.88,604.55,0.33082458]
[1743438789154,0.28764847,605.74,604.55,0.33082458]
[1743438789348,0.33009292,605.89,604.55,0.33082458]
[1743438789555,0.28767939,605.73,604.55,0.33082458]
[1743438789952,0.33009292,605.89,604.55,0.33082458]
[1743438790155,0.30361307,605.88,604.55,0.33082458]
[1743438790456,0.28764966,605.72,604.55,0.33082458]
[1743438790657,0.30361307,605.71,604.55,0.33082458]
[1743438790859,0.28764491,605.87,604.55,0.33082458]
[1743438791058,0.30361412,605.86,604.55,0.33082458]
[1743438792256,0.30361412,605.85,604.55,0.33082458]
[1743438792452,0.28764728,605.85,604.55,0.33082458]
[1743438792755,0.30361412,605.84,604.55,0.33082458]
[1743438793352,0.30361608,605.83,604.55,0.33082458]
[1743438793557,0.30361608,605.82,604.55,0.33082458]
[1743438793759,0.30361608,605.81,604.55,0.33082458]
[1743438793954,0.30361608,605.84,604.55,0.33082458]
[1743438794260,0.30361608,605.83,604.55,0.33082458]
[1743438794463,0.30361608,605.82,604.55,0.33082458]
[1743438794664,0.30361608,605.84,604.55,0.33082458]
[1743438794868,0.30361608,605.83,604.55,0.33082458]
[1743438795064,0.30361608,605.84,604.55,0.33082458]
[1743438795263,0.59126099,605.83,604.55,0.33082458]
[1743438795462,0.30361608,605.82,604.55,0.33082458]
[1743438798267,0.30361608,605.88,604.55,0.33082458]
[1743438798468,0.28762827,605.81,604.55,0.33082458]
[1743438798672,0.30361608,605.8,604.55,0.33082458]
[1743438799965,0.30359097,605.79,604.55,0.33082458]
[1743438800166,0.30359097,605.8,604.55,0.33082458]
[1743438800368,0.30359097,605.79,604.55,0.33082458]
[1743438800569,0.30359097,605.78,604.55,0.33082458]
[1743438800770,0.28762827,605.81,604.55,0.33082458]
[1743438804067,0.33009292,605.89,604.55,0.33082458]
[1743438804269,0.28758429,605.8,604.55,0.33082458]
[1743438804668,0.33009292,605.89,604.55,0.33082458]
[1743438804868,0.852,605.79,604.55,0.33082458]
[1743438805072,1.13958429,605.79,604.55,0.33082458]
[1743438805271,0.852,605.79,604.55,0.33082458]
[1743438805673,0.28759499,605.78,604.55,0.33082458]
[1743438807081,0.852,605.79,604.55,0.33082458]
[1743438807573,0.28760687,605.78,604.55,0.33082458]
[1743438809981,0.852,605.79,604.55,0.33082458]
[1743438810279,0.28763659,605.77,604.55,0.33082458]
[1743438816179,0.852,605.79,604.55,0.33082458]
[1743438816376,0.28756528,605.76,604.55,0.33082458]
[1743438819080,0.98434322,606.58,604.55,0.33082458]
[1743438819284,0.63315576,606.57,604.55,0.33082458]
[1743438819586,0.28755102,605.75,604.55,0.33082458]
[1743438819786,0.3297283,606.56,604.55,0.33082458]
[1743438820081,0.30342803,606.55,604.55,0.33082458]
[1743438820285,0.32973917,606.54,604.55,0.33082458]
[1743438820485,0.30342803,606.53,604.55,0.33082458]
[1743438820787,0.32975004,606.52,604.55,0.33082458]
[1743438820988,1.28777125,606.51,604.56,1.98574686]
[1743438821191,0.63318895,606.5,604.58,0.33080816]
[1743438821389,0.63319034,606.49,604.58,0.33080816]
[1743438821590,0.63319577,606.48,604.59,1.98574686]
[1743438821790,0.63320121,606.47,604.61,0.33079175]
[1743438821991,0.63320665,606.46,604.61,0.33079175]
[1743438822188,0.63321209,606.45,604.61,0.33079175]
[1743438822383,0.63321752,606.44,604.61,0.33079175]
[1743438822583,0.30342398,606.43,604.61,0.33079175]
[1743438822787,0.30342398,606.42,604.61,0.33079175]
[1743438823089,0.63321915,606.41,604.61,2.31653861]
[1743438823291,0.63322459,606.4,604.61,0.33079175]
[1743438823487,0.28741091,606.46,604.61,0.33079175]
[1743438823488,0.63323003,606.39,604.61,2.31653861]
[1743438823684,0.30340929,606.38,604.61,0.33079175]
[1743438823885,0.30340929,606.37,604.61,0.33079175]
[1743438824088,0.30340929,606.36,604.61,0.33079175]
[1743438824286,0.30340929,606.35,604.62,1.98574686]
[1743438824488,0.30340929,606.34,604.64,0.33077533]
[1743438824892,0.30340929,606.33,604.64,0.33077533]
[1743438825085,0.30340929,606.32,604.64,2.31652219]
[1743438825290,0.30340929,606.31,604.66,0.33076439]
[1743438825485,0.28741684,606.32,604.66,0.33076439]
[1743438825886,0.30340929,606.31,604.66,0.33076439]
[1743438826388,0.28741684,606.32,604.66,0.33076439]
[1743438826585,0.30340534,606.31,604.66,0.33076439]
[1743438828493,0.59083168,606.3,604.66,0.33076439]
[1743438828689,0.30340534,606.29,604.66,0.33076439]
[1743438831191,0.30340534,606.28,604.66,0.33076439]
[1743438831386,0.30339415,606.27,604.66,0.33076439]
[1743438833195,0.30340728,606.26,604.66,0.33076439]
[1743438833493,0.30340728,606.25,604.66,0.33076439]
[1743438833693,0.30340728,606.27,604.66,0.33076439]
[1743438833896,0.30340728,606.26,604.66,0.33076439]
[1743438834091,0.30340728,606.27,604.66,0.33076439]
[1743438834290,0.32982074,606.39,604.66,0.33076439]
[1743438834495,0.28743346,606.25,604.66,0.33076439]
[1743438834690,0.32982074,606.39,604.66,0.33076439]
[1743438835094,0.28741684,606.24,604.66,0.33076439]
[1743438835297,0.32982074,606.39,604.66,0.33076439]
[1743438835798,0.28741684,606.23,604.66,0.33076439]
[1743438835996,0.32982074,606.39,604.66,0.33076439]
[1743438836396,0.28741565,606.22,604.66,0.33076439]
[1743438836597,0.32982074,606.39,604.66,0.33076439]
[1743438836897,0.28746551,606.21,604.66,0.33076439]
[1743438837298,0.30331447,606.2,604.66,0.33076439]
[1743438837494,0.28746195,606.2,604.66,0.33076439]
[1743438840200,0.32982074,606.39,604.66,0.33076439]
[1743438840399,0.28738717,606.19,604.66,0.33076439]
[1743438840803,0.32982074,606.39,604.66,0.33076439]
[1743438841000,0.30331443,606.38,604.66,0.33076439]
[1743438841403,0.28738954,606.37,604.66,0.33076439]
[1743438841804,0.30330617,606.36,604.66,0.33076439]
[1743438843304,0.30330617,606.35,604.66,0.33076439]
[1743438843505,0.28740497,606.35,604.66,0.33076439]
[1743438843705,0.30330617,606.34,604.66,0.33076439]
[1743438844207,0.28740497,606.35,604.66,0.33076439]
[1743438844510,0.30332249,606.34,604.66,0.33076439]
[1743438844708,1.42732249,606.34,604.66,0.33076439]
[1743438844908,0.30332249,606.33,604.66,0.33076439]
[1743438846308,0.28740141,606.32,604.66,0.33076439]
[1743438846507,0.30332249,606.31,604.66,0.33076439]
[1743438847303,0.28740141,606.32,604.66,0.33076439]
[1743438849008,1.124,606.34,604.66,0.33076439]
[1743438849303,0.28733378,606.31,604.66,0.33076439]
[1743438852007,1.124,606.34,604.66,0.33076439]
[1743438852406,0.28735632,606.3,604.66,0.33076439]
[1743438855113,1.124,606.34,604.66,0.33076439]
[1743438855318,0.28736819,606.29,604.66,0.33076439]
[1743438858117,1.124,606.34,604.66,0.33076439]
[1743438858315,0.28736107,606.28,604.66,0.33076439]
[1743438861019,1.124,606.34,604.66,0.33076439]
[1743438861424,0.28733141,606.27,604.66,0.33076439]
[1743438864023,1.124,606.34,604.66,0.33076439]
[1743438864724,0.28737887,606.33,604.66,0.33076439]
[1743438866329,0.28737887,606.33,604.67,1.98574686]
[1743438866527,0.28737887,606.33,604.69,0.33074798]
[1743438866727,0.28737887,606.33,604.7,1.98574686]
[1743438866929,0.28737887,606.33,604.72,0.33073157]
[1743438867129,1.124,606.34,604.72,2.31647843]
[1743438867326,0.28730887,606.32,604.73,1.98574686]
[1743438867523,0.28730887,606.32,604.75,0.33071517]
[1743438868425,0.28730887,606.32,604.76,1.98574686]
[1743438868630,0.28730887,606.32,604.78,0.33069876]
[1743438869234,0.28730887,606.32,604.79,1.98574686]
[1743438869435,0.28730887,606.32,604.81,0.33068236]
[1743438869629,0.28730887,606.32,604.82,1.98574686]
[1743438869825,0.28730887,606.32,604.84,0.33066596]
[1743438870028,1.124,606.34,604.84,0.33066596]
[1743438870433,0.28733378,606.33,604.84,0.33066596]
[1743438870834,0.28733378,606.33,604.85,1.98574686]
[1743438871134,0.28733378,606.33,604.87,0.33064956]
[1743438871330,0.28733378,606.33,604.88,1.98574686]
[1743438871532,0.28733378,606.33,604.9,0.33063316]
[1743438871732,0.28733378,606.33,604.91,1.98574686]
[1743438871933,0.28733378,606.33,604.93,0.33061676]
[1743438873133,1.124,606.34,604.93,0.33061676]
[1743438873334,0.2872982,606.32,604.93,0.33061676]
[1743438875134,0.2872982,606.32,604.94,1.98574686]
[1743438875337,0.2872982,606.32,604.96,0.33060037]
[1743438875534,0.2872982,606.32,604.97,1.98574686]
[1743438875735,0.2872982,606.32,604.96,0.33060037]
[1743438875736,0.2872982,606.32,604.98,1.98574686]
[1743438875931,0.2872982,606.32,604.99,1.98574686]
[1743438876130,1.124,606.34,605.01,0.33057304]
[1743438876329,0.28727804,606.31,605.02,1.98574686]
[1743438876534,0.28727804,606.31,605.04,0.33055665]
[1743438876735,0.28727804,606.31,605.05,1.98574686]
[1743438876933,0.28727804,606.31,605.06,1.98574686]
[1743438877136,0.28727804,606.31,605.07,1.98574686]
[1743438877337,0.28727804,606.31,605.08,1.98574686]
[1743438877532,0.28727804,606.31,605.1,0.33052388]
[1743438879041,1.124,606.34,605.1,0.33052388]
[1743438879440,0.28728397,606.3,605.1,0.33052388]
[1743438882039,1.124,606.34,605.1,0.33052388]
[1743438882744,0.28729583,606.33,605.1,0.33052388]
[1743438885045,1.124,606.34,605.1,0.33052388]
[1743438885745,0.28729939,606.33,605.1,0.33052388]
[1743438891050,1.124,606.34,605.1,0.33052388]
[1743438891651,0.28738598,606.33,605.1,0.33052388]
[1743438894055,1.124,606.34,605.1,0.33052388]
[1743438894356,0.28738005,606.32,605.11,1.98574686]
[1743438894554,0.28738005,606.32,605.13,0.33050749]
[1743438894755,0.28738005,606.32,605.13,2.31625435]
[1743438894954,0.28738005,606.32,605.13,0.33050749]
[1743438897151,1.124,606.34,605.13,0.33050749]
[1743438897352,0.28730532,606.31,605.13,0.33050749]
[1743438900054,1.124,606.34,605.13,0.33050749]
[1743438900656,0.9863806,606.85,605.13,0.33050749]
[1743438900960,0.28730294,606.33,605.13,0.33050749]
[1743438901161,0.32957616,606.84,605.13,0.33050749]
[1743438901362,1.28943901,606.83,605.14,1.98574686]
[1743438901564,0.28724484,606.32,605.16,0.3304911]
[1743438901759,0.32958702,606.82,605.17,1.98574686]
[1743438902061,0.28720454,606.31,605.19,0.33047472]
[1743438902463,0.32958702,606.82,605.19,0.33047472]
[1743438902661,0.28720217,606.3,605.19,0.33047472]
[1743438903056,0.32958702,606.82,605.19,0.33047472]
[1743438903257,0.28720217,606.29,605.19,0.33047472]
[1743438903763,0.32958702,606.82,605.19,0.33047472]
[1743438904062,1.06921521,606.28,605.19,0.33047472]
[1743438904256,0.782,606.28,605.19,0.33047472]
[1743438904663,0.28727685,606.27,605.19,0.33047472]
[1743438906163,0.782,606.28,605.19,0.33047472]
[1743438906361,0.28727448,606.26,605.19,0.33047472]
[1743438909169,0.782,606.28,605.19,0.33047472]
[1743438909366,0.28727211,606.25,605.19,0.33047472]
[1743438912069,0.782,606.28,605.19,0.33047472]
[1743438912070,0.782,606.28,605.2,1.98574686]
[1743438912270,0.782,606.28,605.22,0.33045834]
[1743438912673,0.2872816,606.27,605.22,0.33045834]
[1743438915175,0.782,606.28,605.22,0.33045834]
[1743438915377,0.28732904,606.26,605.22,0.33045834]
[1743438920982,0.30337797,606.25,605.22,0.33045834]
[1743438921480,0.30337797,606.24,605.22,0.33045834]
[1743438922283,0.99,606.23,605.22,0.33045834]
[1743438922482,0.30337797,606.22,605.22,0.33045834]
[1743438924279,0.99,606.23,605.22,0.33045834]
[1743438924584,0.28743583,606.21,605.22,0.33045834]
[1743438925585,0.30339424,606.2,605.22,0.33045834]
[1743438927484,0.5908372,606.19,605.22,0.33045834]
[1743438927682,0.30339424,606.18,605.22,0.33045834]
[1743438929580,0.28744296,606.19,605.22,0.33045834]
[1743438929782,0.30341654,606.18,605.22,0.33045834]
[1743438929982,0.28744296,606.19,605.22,0.33045834]
[1743438930185,0.99,606.23,605.22,0.33045834]
[1743438930382,0.28746314,606.17,605.22,0.33045834]
[1743438933184,0.99,606.23,605.22,0.33045834]
[1743438933384,0.30349071,606.22,605.22,0.33045834]
[1743438933690,0.28759499,606.16,603.6,1.97967156]
[1743438933886,0.28759499,606.16,603.72,0.3312794]
[1743438936089,0.32991867,606.21,603.72,0.3312794]
[1743438936491,0.30349093,606.2,603.72,0.3312794]
[1743438936687,0.59110256,606.2,603.73,0.28761163]
[1743438936893,0.28761163,606.2,603.73,0.28761163]
[1743438937688,0.28761163,606.2,603.85,0.33120808]
[1743438939090,0.32991867,606.21,603.85,0.33120808]
[1743438939290,0.3034889,606.2,603.85,0.33120808]
[1743438939692,0.5911136,606.2,603.85,0.33120808]
[1743438939895,0.3034889,606.19,603.85,0.33120808]
[1743438940096,0.30348906,606.18,603.85,0.33120808]
[1743438940296,0.30348906,606.19,603.85,0.33120808]
[1743438940497,0.30348906,606.18,603.85,0.33120808]
[1743438940693,0.30348906,606.19,603.85,0.33120808]
[1743438940897,0.30348906,606.18,603.85,0.33120808]
[1743438941096,0.30348906,606.17,603.85,0.33120808]
[1743438941296,0.30348906,606.19,603.85,0.33120808]
[1743438941495,0.30348906,606.18,603.85,0.33120808]
[1743438941902,0.30348906,606.17,603.85,0.33120808]
[1743438942100,0.30348906,606.19,603.85,0.33120808]
[1743438942296,0.30348906,606.18,603.85,0.33120808]
[1743438942495,0.30348906,606.17,603.85,0.33120808]
[1743438942695,0.30348906,606.16,603.86,1.97967156]
[1743438942898,0.30348906,606.15,603.97,0.33114227]
[1743438943201,0.30348906,606.14,603.98,1.97967156]
[1743438943397,0.3034907,606.13,604.08,0.33108197]
[1743438943596,0.28759618,606.18,604.08,0.33108197]
[1743438945198,0.32991867,606.21,604.08,0.33108197]
[1743438945404,0.28752489,606.17,604.08,0.33108197]
[1743438947003,0.30347803,606.16,604.08,0.33108197]
[1743438948304,0.30347803,606.2,604.08,0.33108197]
[1743438948505,0.28756528,606.15,604.08,0.33108197]
[1743438948705,0.30347803,606.14,604.08,0.33108197]
[1743438949004,0.30347803,606.14,604.09,1.97967156]
[1743438949209,0.30347803,606.14,604.19,0.33102169]
[1743438949508,0.30347803,606.14,604.2,1.97967156]
[1743438949710,0.30347803,606.14,604.22,0.33100526]
[1743438949912,0.30347803,606.14,604.22,2.31067682]
[1743438950108,0.30347803,606.14,604.22,0.33100526]
[1743438951310,0.32995677,606.14,604.22,0.33100526]